[Event "Titled Tuesday Blitz April 26 Early 2022"]
[White "Nazari, Arad"]
[Black "Jaskolka, Tomasz"]
[WhiteFideId "12577324"]
[BlackFideId "1170791"]
[WhiteElo "2129"]
[BlackElo "2073"]
[Result "1/2-1/2"]
[Round "01"]
[TimeControl "180+1"]
[Date "2022.04.26"]
[WhiteClock "0:00:07"]
[BlackClock "0:00:11"]

1. e4 {[%clk 0:02:59]}  c5 {[%clk 0:02:59]} 2. Nf3 {[%clk 0:02:44]}  e6 {[%clk 0:03:00]} 3. d3 {[%clk 0:02:44]}  Nc6 {[%clk 0:02:54]} 4. g3 {[%clk 0:02:43]}  Nf6 {[%clk 0:02:44]} 5. Bg2 {[%clk 0:02:43]}  d6 {[%clk 0:02:44]} 6. O-O {[%clk 0:02:41]}  Be7 {[%clk 0:02:44]} 7. Nbd2 {[%clk 0:02:41]}  O-O {[%clk 0:02:42]} 8. b3 {[%clk 0:02:41]}  Re8 {[%clk 0:02:37]} 9. Bb2 {[%clk 0:02:41]}  Bf8 {[%clk 0:02:31]} 10. Re1 {[%clk 0:02:41]}  e5 {[%clk 0:02:30]} 11. Nc4 {[%clk 0:02:41]}  Be6 {[%clk 0:02:28]} 12. Ne3 {[%clk 0:02:41]}  g6 {[%clk 0:02:27]} 13. a4 {[%clk 0:02:41]}  Bg7 {[%clk 0:02:25]} 14. Ng5 {[%clk 0:02:37]}  Bd7 {[%clk 0:02:15]} 15. h4 {[%clk 0:02:37]}  h6 {[%clk 0:02:15]} 16. Nf3 {[%clk 0:02:36]}  Be6 {[%clk 0:02:09]} 17. Nh2 {[%clk 0:02:19]}  Kh7 {[%clk 0:01:54]} 18. Bc1 {[%clk 0:02:18]}  Nd4 {[%clk 0:01:51]} 19. Nc4 {[%clk 0:02:07]}  h5 {[%clk 0:01:24]} 20. Rb1 {[%clk 0:02:02]}  a6 {[%clk 0:01:15]} 21. c3 {[%clk 0:01:51]}  Nc6 {[%clk 0:01:14]} 22. Ne3 {[%clk 0:01:51]}  b5 {[%clk 0:01:13]} 23. b4 {[%clk 0:01:43]}  cxb4 {[%clk 0:01:10]} 24. cxb4 {[%clk 0:01:43]}  Nd4 {[%clk 0:01:10]} 25. Nf3 {[%clk 0:01:40]}  Nxf3+ {[%clk 0:01:01]} 26. Bxf3 {[%clk 0:01:41]}  Qd7 {[%clk 0:00:59]} 27. a5 {[%clk 0:01:34]}  Rec8 {[%clk 0:00:52]} 28. Bb2 {[%clk 0:01:34]}  Ng4 {[%clk 0:00:52]} 29. Bxg4 {[%clk 0:01:28]}  Bxg4 {[%clk 0:00:52]} 30. Nxg4 {[%clk 0:01:26]}  Qxg4 {[%clk 0:00:52]} 31. Qxg4 {[%clk 0:01:25]}  hxg4 {[%clk 0:00:53]} 32. Rbc1 {[%clk 0:01:16]}  Bh6 {[%clk 0:00:52]} 33. Rxc8 {[%clk 0:01:16]}  Rxc8 {[%clk 0:00:52]} 34. Re2 {[%clk 0:00:45]}  Bc1 {[%clk 0:00:43]} 35. Kf1 {[%clk 0:00:43]}  Bxb2 {[%clk 0:00:43]} 36. Rxb2 {[%clk 0:00:44]}  Kg7 {[%clk 0:00:40]} 37. Ke2 {[%clk 0:00:44]}  f5 {[%clk 0:00:41]} 38. exf5 {[%clk 0:00:37]}  gxf5 {[%clk 0:00:41]} 39. Kd2 {[%clk 0:00:38]}  d5 {[%clk 0:00:25]} 40. Rb1 {[%clk 0:00:37]}  Kf6 {[%clk 0:00:24]} 41. Rh1 {[%clk 0:00:36]}  f4 {[%clk 0:00:23]} 42. h5 {[%clk 0:00:35]}  Rh8 {[%clk 0:00:20]} 43. h6 {[%clk 0:00:33]}  Kg6 {[%clk 0:00:20]} 44. Re1 {[%clk 0:00:34]}  Re8 {[%clk 0:00:19]} 45. Rc1 {[%clk 0:00:33]}  Re6 {[%clk 0:00:17]} 46. Rc5 {[%clk 0:00:23]}  Rd6 {[%clk 0:00:17]} 47. d4 {[%clk 0:00:17]}  fxg3 {[%clk 0:00:14]} 48. dxe5 {[%clk 0:00:16]}  g2 {[%clk 0:00:12]} 49. Rc1 {[%clk 0:00:12]}  Re6 {[%clk 0:00:12]} 50. Rg1 {[%clk 0:00:10]}  Rxe5 {[%clk 0:00:13]} 51. Rxg2 {[%clk 0:00:11]}  Re4 {[%clk 0:00:13]} 52. f3 {[%clk 0:00:07]}  Rxb4 {[%clk 0:00:12]} 53. fxg4 {[%clk 0:00:06]}  Kxh6 {[%clk 0:00:12]} 54. Kc3 {[%clk 0:00:06]}  Rc4+ {[%clk 0:00:12]} 55. Kd3 {[%clk 0:00:07]}  Kg5 {[%clk 0:00:13]} 56. Re2 {[%clk 0:00:07]}  Kxg4 {[%clk 0:00:08]} 57. Re6 {[%clk 0:00:07]}  Ra4 {[%clk 0:00:07]} 58. Rxa6 {[%clk 0:00:07]}  Kf5 {[%clk 0:00:07]} 59. Ra8 {[%clk 0:00:07]}  Ke6 {[%clk 0:00:08]} 60. a6 {[%clk 0:00:07]}  Kd6 {[%clk 0:00:08]} 61. a7 {[%clk 0:00:07]}  Kc7 {[%clk 0:00:08]} 62. Kc3 {[%clk 0:00:05]}  Kb7 {[%clk 0:00:08]} 63. Rd8 {[%clk 0:00:04]}  Kxa7 {[%clk 0:00:06]} 64. Rxd5 {[%clk 0:00:04]}  Kb6 {[%clk 0:00:07]} 65. Kb3 {[%clk 0:00:04]}  Rh4 {[%clk 0:00:07]} 66. Rd8 {[%clk 0:00:04]}  Kc5 {[%clk 0:00:06]} 67. Rc8+ {[%clk 0:00:04]}  Kb6 {[%clk 0:00:07]} 68. Rb8+ {[%clk 0:00:04]}  Kc6 {[%clk 0:00:07]} 69. Rc8+ {[%clk 0:00:04]}  Kd5 {[%clk 0:00:07]} 70. Rd8+ {[%clk 0:00:04]}  Kc6 {[%clk 0:00:07]} 71. Rc8+ {[%clk 0:00:05]}  Kb7 {[%clk 0:00:08]} 72. Rg8 {[%clk 0:00:05]}  Rf4 {[%clk 0:00:08]} 73. Rg7+ {[%clk 0:00:05]}  Kb6 {[%clk 0:00:08]} 74. Rg8 {[%clk 0:00:05]}  Rf3+ {[%clk 0:00:08]} 75. Kb4 {[%clk 0:00:06]}  Rf4+ {[%clk 0:00:09]} 76. Kb3 {[%clk 0:00:06]}  Rf3+ {[%clk 0:00:10]} 77. Kb4 {[%clk 0:00:07]}  Rf4+ {[%clk 0:00:11]} 78. Kb3 {[%clk 0:00:07]} 1/2-1/2


[Site "https://www.chess.com"]

[Event "Titled Tuesday Blitz April 26 Early 2022"]
[White "Onslow, Alfie"]
[Black "Seemann, Jakub"]
[WhiteFideId "436976"]
[BlackFideId "21874697"]
[WhiteElo "1884"]
[BlackElo "2003"]
[Result "0-1"]
[Round "01"]
[TimeControl "180+1"]
[Date "2022.04.26"]
[WhiteClock "0:00:02"]
[BlackClock "0:00:38"]

1. e4 {[%clk 0:02:58]}  e5 {[%clk 0:02:51]} 2. Bc4 {[%clk 0:02:58]}  Nf6 {[%clk 0:02:42]} 3. d3 {[%clk 0:02:58]}  c6 {[%clk 0:02:42]} 4. Nf3 {[%clk 0:02:57]}  d5 {[%clk 0:02:40]} 5. Bb3 {[%clk 0:02:58]}  Bd6 {[%clk 0:02:39]} 6. exd5 {[%clk 0:02:55]}  cxd5 {[%clk 0:02:39]} 7. Bg5 {[%clk 0:02:56]}  Be6 {[%clk 0:02:37]} 8. Nc3 {[%clk 0:02:55]}  Bc7 {[%clk 0:02:32]} 9. O-O {[%clk 0:02:52]}  Nc6 {[%clk 0:02:32]} 10. Re1 {[%clk 0:02:46]}  h6 {[%clk 0:02:31]} 11. Bxf6 {[%clk 0:02:46]}  gxf6 {[%clk 0:02:32]} 12. Nb5 {[%clk 0:02:33]}  Bb6 {[%clk 0:02:29]} 13. c4 {[%clk 0:02:31]}  a6 {[%clk 0:02:24]} 14. Nc3 {[%clk 0:02:26]}  dxc4 {[%clk 0:02:14]} 15. dxc4 {[%clk 0:02:23]}  Nd4 {[%clk 0:02:14]} 16. Nxd4 {[%clk 0:02:19]}  Bxd4 {[%clk 0:02:13]} 17. Qc2 {[%clk 0:02:02]}  Qb6 {[%clk 0:01:52]} 18. Ba4+ {[%clk 0:01:55]}  Ke7 {[%clk 0:01:51]} 19. Ne4 {[%clk 0:01:10]}  Rac8 {[%clk 0:01:43]} 20. Bb3 {[%clk 0:01:10]}  f5 {[%clk 0:01:41]} 21. Ng3 {[%clk 0:01:08]}  f4 {[%clk 0:01:36]} 22. Ne4 {[%clk 0:00:36]}  f5 {[%clk 0:01:34]} 23. Nc3 {[%clk 0:00:28]}  Rhd8 {[%clk 0:01:34]} 24. Qe2 {[%clk 0:00:27]}  Kf6 {[%clk 0:01:27]} 25. Qh5 {[%clk 0:00:22]}  Kg7 {[%clk 0:01:23]} 26. Rad1 {[%clk 0:00:19]}  Bxf2+ {[%clk 0:01:22]} 27. Kh1 {[%clk 0:00:15]}  Bxe1 {[%clk 0:01:21]} 28. Rxe1 {[%clk 0:00:16]}  Qd4 {[%clk 0:01:19]} 29. Nd5 {[%clk 0:00:13]}  Bxd5 {[%clk 0:01:06]} 30. cxd5 {[%clk 0:00:14]}  Rf8 {[%clk 0:01:02]} 31. h3 {[%clk 0:00:05]}  Qd2 {[%clk 0:01:01]} 32. Rd1 {[%clk 0:00:04]}  Rc1 {[%clk 0:01:01]} 33. Rxc1 {[%clk 0:00:03]}  Qxc1+ {[%clk 0:01:02]} 34. Kh2 {[%clk 0:00:03]}  Qe3 {[%clk 0:01:00]} 35. d6 {[%clk 0:00:03]}  Qg3+ {[%clk 0:00:59]} 36. Kh1 {[%clk 0:00:03]}  e4 {[%clk 0:00:38]} 37. d7 {[%clk 0:00:02]}  f3 {[%clk 0:00:38]} 38. d8=Q {[%clk 0:00:02]}  Qxg2# {[%clk 0:00:38]} 0-1


[Site "https://www.chess.com"]

[Event "Titled Tuesday Blitz April 26 Early 2022"]
[White "Oparin, Grigoriy"]
[Black "Iljin, Timofey"]
[WhiteFideId "24125890"]
[BlackFideId "14110180"]
[WhiteElo "2665"]
[BlackElo "2396"]
[Result "1/2-1/2"]
[Round "01"]
[TimeControl "180+1"]
[Date "2022.04.26"]
[WhiteClock "0:00:05"]
[BlackClock "0:00:13"]

1. e4 {[%clk 0:02:59]}  d5 {[%clk 0:02:58]} 2. exd5 {[%clk 0:02:58]}  Nf6 {[%clk 0:02:59]} 3. Nc3 {[%clk 0:02:59]}  Nxd5 {[%clk 0:02:59]} 4. Nf3 {[%clk 0:02:59]}  Bg4 {[%clk 0:02:58]} 5. h3 {[%clk 0:02:57]}  Bh5 {[%clk 0:02:58]} 6. d3 {[%clk 0:02:52]}  e6 {[%clk 0:02:53]} 7. g4 {[%clk 0:02:48]}  Bg6 {[%clk 0:02:53]} 8. Bg2 {[%clk 0:02:49]}  Nd7 {[%clk 0:02:51]} 9. Nxd5 {[%clk 0:02:31]}  exd5 {[%clk 0:02:51]} 10. Be3 {[%clk 0:02:31]}  Bd6 {[%clk 0:02:47]} 11. Qd2 {[%clk 0:02:30]}  O-O {[%clk 0:02:46]} 12. O-O-O {[%clk 0:02:29]}  Re8 {[%clk 0:02:44]} 13. h4 {[%clk 0:02:29]}  h5 {[%clk 0:02:39]} 14. Ng5 {[%clk 0:02:23]}  Nf6 {[%clk 0:02:36]} 15. gxh5 {[%clk 0:02:19]}  Bxh5 {[%clk 0:02:37]} 16. Rdg1 {[%clk 0:02:19]}  c5 {[%clk 0:02:31]} 17. Kb1 {[%clk 0:01:58]}  d4 {[%clk 0:02:26]} 18. Bf4 {[%clk 0:01:59]}  Re2 {[%clk 0:02:27]} 19. Qc1 {[%clk 0:01:59]}  Rxf2 {[%clk 0:02:24]} 20. Nh3 {[%clk 0:01:42]}  Bxf4 {[%clk 0:02:14]} 21. Nxf4 {[%clk 0:01:43]}  Qd6 {[%clk 0:02:15]} 22. Nxh5 {[%clk 0:01:38]}  Nxh5 {[%clk 0:02:15]} 23. Bxb7 {[%clk 0:01:37]}  Rb8 {[%clk 0:02:09]} 24. Rg2 {[%clk 0:01:27]}  Rxg2 {[%clk 0:01:56]} 25. Bxg2 {[%clk 0:01:28]}  Nf4 {[%clk 0:01:57]} 26. Bf3 {[%clk 0:01:25]}  Nd5 {[%clk 0:01:56]} 27. Bxd5 {[%clk 0:01:24]}  Qxd5 {[%clk 0:01:57]} 28. Re1 {[%clk 0:01:18]}  c4 {[%clk 0:01:54]} 29. dxc4 {[%clk 0:01:18]}  Qxc4 {[%clk 0:01:55]} 30. Qd2 {[%clk 0:01:11]}  Qb5 {[%clk 0:01:49]} 31. b3 {[%clk 0:01:09]}  Qc5 {[%clk 0:01:49]} 32. Re4 {[%clk 0:01:00]}  Rd8 {[%clk 0:01:46]} 33. a4 {[%clk 0:00:55]}  a5 {[%clk 0:01:23]} 34. Qd3 {[%clk 0:00:52]}  Qb6 {[%clk 0:01:23]} 35. h5 {[%clk 0:00:46]}  Qc5 {[%clk 0:01:16]} 36. Qb5 {[%clk 0:00:26]}  Qxb5 {[%clk 0:00:56]} 37. axb5 {[%clk 0:00:26]}  d3 {[%clk 0:00:57]} 38. cxd3 {[%clk 0:00:23]}  Rxd3 {[%clk 0:00:58]} 39. b4 {[%clk 0:00:09]}  Rd5 {[%clk 0:00:50]} 40. b6 {[%clk 0:00:07]}  Rb5 {[%clk 0:00:45]} 41. Kc2 {[%clk 0:00:05]}  axb4 {[%clk 0:00:42]} 42. Re8+ {[%clk 0:00:05]}  Kh7 {[%clk 0:00:42]} 43. Rb8 {[%clk 0:00:05]}  b3+ {[%clk 0:00:43]} 44. Kb2 {[%clk 0:00:05]}  Rxh5 {[%clk 0:00:18]} 45. Kxb3 {[%clk 0:00:04]}  Rb5+ {[%clk 0:00:19]} 46. Kc4 {[%clk 0:00:05]}  Rb1 {[%clk 0:00:19]} 47. Kc5 {[%clk 0:00:05]}  g5 {[%clk 0:00:18]} 48. Rd8 {[%clk 0:00:03]}  Kg6 {[%clk 0:00:15]} 49. Rd6+ {[%clk 0:00:04]}  Kf5 {[%clk 0:00:15]} 50. Kc6 {[%clk 0:00:04]}  g4 {[%clk 0:00:14]} 51. Rd5+ {[%clk 0:00:04]}  Kf4 {[%clk 0:00:12]} 52. Rb5 {[%clk 0:00:03]}  Rc1+ {[%clk 0:00:11]} 53. Kd7 {[%clk 0:00:02]}  Rd1+ {[%clk 0:00:10]} 54. Ke7 {[%clk 0:00:03]}  Re1+ {[%clk 0:00:09]} 55. Kxf7 {[%clk 0:00:03]}  Rd1 {[%clk 0:00:08]} 56. b7 {[%clk 0:00:03]}  Rd8 {[%clk 0:00:08]} 57. b8=Q+ {[%clk 0:00:03]}  Rxb8 {[%clk 0:00:09]} 58. Rxb8 {[%clk 0:00:04]}  g3 {[%clk 0:00:09]} 59. Ke6 {[%clk 0:00:04]}  g2 {[%clk 0:00:09]} 60. Rg8 {[%clk 0:00:04]}  Kf3 {[%clk 0:00:10]} 61. Ke5 {[%clk 0:00:04]}  Kf2 {[%clk 0:00:11]} 62. Ke4 {[%clk 0:00:05]}  g1=Q {[%clk 0:00:12]} 63. Rxg1 {[%clk 0:00:05]}  Kxg1 {[%clk 0:00:13]} 1/2-1/2


[Site "https://www.chess.com"]

[Event "Titled Tuesday Blitz April 26 Early 2022"]
[White "Ozdemir, Serhan Berat"]
[Black "Costachi, Mihnea"]
[WhiteFideId "6374611"]
[BlackFideId "1217518"]
[WhiteElo "1920"]
[BlackElo "2476"]
[Result "0-1"]
[Round "01"]
[TimeControl "180+1"]
[Date "2022.04.26"]
[WhiteClock "0:00:07"]
[BlackClock "0:01:53"]

1. e4 {[%clk 0:02:55]}  e5 {[%clk 0:02:59]} 2. Nf3 {[%clk 0:02:55]}  Nc6 {[%clk 0:02:59]} 3. d4 {[%clk 0:02:54]}  exd4 {[%clk 0:02:59]} 4. Bc4 {[%clk 0:02:54]}  Bc5 {[%clk 0:02:58]} 5. c3 {[%clk 0:02:54]}  Nf6 {[%clk 0:02:57]} 6. e5 {[%clk 0:02:54]}  d5 {[%clk 0:02:58]} 7. Bb5 {[%clk 0:02:54]}  Ne4 {[%clk 0:02:57]} 8. cxd4 {[%clk 0:02:55]}  Bb6 {[%clk 0:02:57]} 9. h3 {[%clk 0:02:55]}  O-O {[%clk 0:02:56]} 10. O-O {[%clk 0:02:51]}  f6 {[%clk 0:02:55]} 11. Nc3 {[%clk 0:02:39]}  fxe5 {[%clk 0:02:43]} 12. Bxc6 {[%clk 0:02:38]}  bxc6 {[%clk 0:02:43]} 13. Nxe5 {[%clk 0:02:38]}  Nxc3 {[%clk 0:02:33]} 14. bxc3 {[%clk 0:02:35]}  c5 {[%clk 0:02:34]} 15. Be3 {[%clk 0:02:22]}  cxd4 {[%clk 0:02:33]} 16. cxd4 {[%clk 0:02:20]}  Bf5 {[%clk 0:02:29]} 17. a4 {[%clk 0:02:13]}  a5 {[%clk 0:02:27]} 18. Rc1 {[%clk 0:01:28]}  Rc8 {[%clk 0:02:11]} 19. f4 {[%clk 0:01:08]}  Be4 {[%clk 0:02:10]} 20. g4 {[%clk 0:00:51]}  Qe7 {[%clk 0:02:10]} 21. f5 {[%clk 0:00:37]}  c5 {[%clk 0:02:09]} 22. Rb1 {[%clk 0:00:30]}  Bxb1 {[%clk 0:02:07]} 23. Qxb1 {[%clk 0:00:26]}  cxd4 {[%clk 0:02:07]} 24. Qxb6 {[%clk 0:00:25]}  dxe3 {[%clk 0:02:07]} 25. Qxe3 {[%clk 0:00:24]}  Rfe8 {[%clk 0:02:03]} 26. Re1 {[%clk 0:00:23]}  Qc5 {[%clk 0:02:03]} 27. Qxc5 {[%clk 0:00:23]}  Rxc5 {[%clk 0:02:04]} 28. Kf2 {[%clk 0:00:18]}  d4 {[%clk 0:02:04]} 29. Nd3 {[%clk 0:00:18]}  Rxe1 {[%clk 0:02:05]} 30. Nxc5 {[%clk 0:00:18]}  Re3 {[%clk 0:02:00]} 31. h4 {[%clk 0:00:17]}  Ra3 {[%clk 0:02:01]} 32. g5 {[%clk 0:00:15]}  Kf7 {[%clk 0:02:01]} 33. Ke2 {[%clk 0:00:15]}  h6 {[%clk 0:02:00]} 34. Ne6 {[%clk 0:00:13]}  Rxa4 {[%clk 0:01:57]} 35. Nd8+ {[%clk 0:00:12]}  Ke7 {[%clk 0:01:56]} 36. Nc6+ {[%clk 0:00:10]}  Kd6 {[%clk 0:01:57]} 37. Nd8 {[%clk 0:00:10]}  hxg5 {[%clk 0:01:57]} 38. hxg5 {[%clk 0:00:11]}  Ke5 {[%clk 0:01:57]} 39. f6 {[%clk 0:00:10]}  gxf6 {[%clk 0:01:56]} 40. g6 {[%clk 0:00:11]}  d3+ {[%clk 0:01:53]} 41. Kf3 {[%clk 0:00:11]}  d2 {[%clk 0:01:53]} 42. Ke2 {[%clk 0:00:08]}  d1=Q+ {[%clk 0:01:52]} 43. Kxd1 {[%clk 0:00:07]}  Rd4+ {[%clk 0:01:53]} 0-1


[Site "https://www.chess.com"]

[Event "Titled Tuesday Blitz April 26 Early 2022"]
[White "Petrova, Irina"]
[Black "Tasev, Dejan"]
[WhiteFideId "14124122"]
[BlackFideId "936618"]
[WhiteElo "1993"]
[BlackElo "2253"]
[Result "0-1"]
[Round "01"]
[TimeControl "180+1"]
[Date "2022.04.26"]
[WhiteClock "0:00:12"]
[BlackClock "0:00:56"]

1. e4 {[%clk 0:03:00]}  c6 {[%clk 0:02:58]} 2. d4 {[%clk 0:03:00]}  d5 {[%clk 0:02:59]} 3. e5 {[%clk 0:03:00]}  Bf5 {[%clk 0:02:58]} 4. h4 {[%clk 0:02:59]}  h6 {[%clk 0:02:55]} 5. Nc3 {[%clk 0:02:58]}  e6 {[%clk 0:02:55]} 6. g4 {[%clk 0:02:56]}  Bh7 {[%clk 0:02:55]} 7. Bd3 {[%clk 0:02:55]}  Bxd3 {[%clk 0:02:54]} 8. Qxd3 {[%clk 0:02:56]}  h5 {[%clk 0:02:54]} 9. g5 {[%clk 0:02:52]}  g6 {[%clk 0:02:53]} 10. Nf3 {[%clk 0:02:51]}  Ne7 {[%clk 0:02:52]} 11. Be3 {[%clk 0:02:50]}  Nf5 {[%clk 0:02:51]} 12. Ne2 {[%clk 0:02:45]}  Nd7 {[%clk 0:02:49]} 13. Ng3 {[%clk 0:02:39]}  Be7 {[%clk 0:02:47]} 14. Nxf5 {[%clk 0:02:38]}  exf5 {[%clk 0:02:46]} 15. O-O {[%clk 0:02:31]}  Nf8 {[%clk 0:02:44]} 16. c4 {[%clk 0:02:27]}  Ne6 {[%clk 0:02:44]} 17. b3 {[%clk 0:02:15]}  Qd7 {[%clk 0:02:36]} 18. c5 {[%clk 0:02:08]}  O-O {[%clk 0:02:31]} 19. Ne1 {[%clk 0:02:07]}  b6 {[%clk 0:02:26]} 20. b4 {[%clk 0:01:58]}  a5 {[%clk 0:02:24]} 21. cxb6 {[%clk 0:01:57]}  axb4 {[%clk 0:02:23]} 22. Nc2 {[%clk 0:01:48]}  Rfb8 {[%clk 0:02:20]} 23. a3 {[%clk 0:01:44]}  bxa3 {[%clk 0:02:16]} 24. Nxa3 {[%clk 0:01:45]}  Rxb6 {[%clk 0:02:10]} 25. Nc2 {[%clk 0:01:44]}  Rab8 {[%clk 0:02:07]} 26. Ra5 {[%clk 0:01:27]}  Rb3 {[%clk 0:02:04]} 27. Qd2 {[%clk 0:01:10]}  Rb2 {[%clk 0:01:39]} 28. Qd1 {[%clk 0:00:50]}  f4 {[%clk 0:01:35]} 29. Bc1 {[%clk 0:00:48]}  R2b3 {[%clk 0:01:33]} 30. Ne1 {[%clk 0:00:39]}  Ng7 {[%clk 0:01:26]} 31. Bxf4 {[%clk 0:00:24]}  Nf5 {[%clk 0:01:23]} 32. Bg3 {[%clk 0:00:24]}  Nxg3 {[%clk 0:01:22]} 33. fxg3 {[%clk 0:00:25]}  Rxg3+ {[%clk 0:01:22]} 34. Ng2 {[%clk 0:00:24]}  Rb2 {[%clk 0:01:16]} 35. Rf2 {[%clk 0:00:23]}  Rxf2 {[%clk 0:01:16]} 36. Kxf2 {[%clk 0:00:24]}  Qh3 {[%clk 0:01:15]} 37. Qg1 {[%clk 0:00:21]}  Rf3+ {[%clk 0:01:13]} 38. Ke2 {[%clk 0:00:21]}  Qg4 {[%clk 0:01:11]} 39. Ke1 {[%clk 0:00:16]}  Rg3 {[%clk 0:01:08]} 40. Ra2 {[%clk 0:00:13]}  Bb4+ {[%clk 0:01:07]} 41. Kf1 {[%clk 0:00:12]}  Rf3+ {[%clk 0:01:06]} 42. Rf2 {[%clk 0:00:12]}  Rd3 {[%clk 0:01:05]} 43. Ne1 {[%clk 0:00:11]}  Qxg1+ {[%clk 0:00:56]} 44. Kxg1 {[%clk 0:00:12]}  Bxe1 {[%clk 0:00:57]} 45. Rc2 {[%clk 0:00:12]}  Bxh4 {[%clk 0:00:55]} 46. Rxc6 {[%clk 0:00:12]}  Rxd4 {[%clk 0:00:56]} 0-1


[Site "https://www.chess.com"]

[Event "Titled Tuesday Blitz April 26 Early 2022"]
[White "Petrovskyi, Vadym"]
[Black "Federzoni, Enzo"]
[WhiteFideId "14165210"]
[BlackFideId "2173301"]
[WhiteElo "2400"]
[BlackElo "1956"]
[Result "1-0"]
[Round "01"]
[TimeControl "180+1"]
[Date "2022.04.26"]
[WhiteClock "0:02:44"]
[BlackClock "0:01:53"]

1. e4 {[%clk 0:02:59]}  c5 {[%clk 0:02:55]} 2. Nf3 {[%clk 0:02:59]}  d6 {[%clk 0:02:53]} 3. d4 {[%clk 0:02:59]}  cxd4 {[%clk 0:02:52]} 4. Nxd4 {[%clk 0:03:00]}  Nf6 {[%clk 0:02:51]} 5. Nc3 {[%clk 0:03:00]}  e6 {[%clk 0:02:52]} 6. Be2 {[%clk 0:03:00]}  a6 {[%clk 0:02:51]} 7. O-O {[%clk 0:03:00]}  Be7 {[%clk 0:02:50]} 8. f4 {[%clk 0:02:59]}  O-O {[%clk 0:02:49]} 9. a4 {[%clk 0:02:59]}  Nc6 {[%clk 0:02:48]} 10. Be3 {[%clk 0:03:00]}  Qc7 {[%clk 0:02:47]} 11. Nb3 {[%clk 0:03:00]}  Na5 {[%clk 0:02:23]} 12. Nxa5 {[%clk 0:02:55]}  Qxa5 {[%clk 0:02:24]} 13. Qe1 {[%clk 0:02:56]}  Qc7 {[%clk 0:02:17]} 14. Qg3 {[%clk 0:02:54]}  b6 {[%clk 0:02:10]} 15. Bd3 {[%clk 0:02:54]}  g6 {[%clk 0:02:08]} 16. Rae1 {[%clk 0:02:53]}  Bb7 {[%clk 0:02:08]} 17. f5 {[%clk 0:02:46]}  d5 {[%clk 0:01:53]} 18. Qxc7 {[%clk 0:02:44]} 1-0


[Site "https://www.chess.com"]

[Event "Titled Tuesday Blitz April 26 Early 2022"]
[White "Polster, Christian"]
[Black "Jaferian, Koosha"]
[WhiteFideId "12965081"]
[BlackFideId "12507440"]
[WhiteElo "2317"]
[BlackElo "2030"]
[Result "1/2-1/2"]
[Round "01"]
[TimeControl "180+1"]
[Date "2022.04.26"]
[WhiteClock "0:00:08"]
[BlackClock "0:00:11"]

1. e4 {[%clk 0:02:57]}  c6 {[%clk 0:02:59]} 2. Nc3 {[%clk 0:02:57]}  d5 {[%clk 0:02:59]} 3. Nf3 {[%clk 0:02:56]}  Bg4 {[%clk 0:02:59]} 4. h3 {[%clk 0:02:56]}  Bxf3 {[%clk 0:02:59]} 5. Qxf3 {[%clk 0:02:56]}  e6 {[%clk 0:03:00]} 6. d4 {[%clk 0:02:56]}  Nf6 {[%clk 0:02:59]} 7. Bd3 {[%clk 0:02:52]}  dxe4 {[%clk 0:02:59]} 8. Nxe4 {[%clk 0:02:53]}  Qxd4 {[%clk 0:02:59]} 9. O-O {[%clk 0:02:52]}  Be7 {[%clk 0:02:51]} 10. Be3 {[%clk 0:02:47]}  Qe5 {[%clk 0:02:48]} 11. Bf4 {[%clk 0:02:40]}  Qa5 {[%clk 0:02:45]} 12. Nd6+ {[%clk 0:02:38]}  Bxd6 {[%clk 0:02:45]} 13. Bxd6 {[%clk 0:02:38]}  Nbd7 {[%clk 0:02:42]} 14. Qg3 {[%clk 0:02:12]}  Nh5 {[%clk 0:02:27]} 15. Qg4 {[%clk 0:02:03]}  Qd5 {[%clk 0:02:18]} 16. Ba3 {[%clk 0:01:53]}  O-O-O {[%clk 0:02:00]} 17. Rfd1 {[%clk 0:01:49]}  Ndf6 {[%clk 0:01:55]} 18. Qa4 {[%clk 0:01:45]}  Kb8 {[%clk 0:01:51]} 19. c4 {[%clk 0:01:26]}  Qg5 {[%clk 0:01:43]} 20. Bf1 {[%clk 0:01:16]}  Ne4 {[%clk 0:01:25]} 21. b4 {[%clk 0:00:58]}  Nf4 {[%clk 0:01:21]} 22. Qb3 {[%clk 0:00:50]}  Qf5 {[%clk 0:00:50]} 23. Qe3 {[%clk 0:00:37]}  Ka8 {[%clk 0:00:44]} 24. Rd4 {[%clk 0:00:26]}  Rxd4 {[%clk 0:00:40]} 25. Qxd4 {[%clk 0:00:27]}  Qg6 {[%clk 0:00:29]} 26. Rd1 {[%clk 0:00:20]}  Rb8 {[%clk 0:00:18]} 27. Kh2 {[%clk 0:00:15]}  Qf5 {[%clk 0:00:11]} 28. b5 {[%clk 0:00:14]}  cxb5 {[%clk 0:00:10]} 29. cxb5 {[%clk 0:00:14]}  Nd5 {[%clk 0:00:11]} 30. f3 {[%clk 0:00:11]}  Qf4+ {[%clk 0:00:11]} 31. Kh1 {[%clk 0:00:11]}  Ng3+ {[%clk 0:00:11]} 32. Kg1 {[%clk 0:00:10]}  Qxd4+ {[%clk 0:00:09]} 33. Rxd4 {[%clk 0:00:11]}  Nf5 {[%clk 0:00:06]} 34. Rd1 {[%clk 0:00:10]}  Nfe3 {[%clk 0:00:07]} 35. Rc1 {[%clk 0:00:10]}  Rd8 {[%clk 0:00:06]} 36. Bd3 {[%clk 0:00:09]}  h6 {[%clk 0:00:06]} 37. Kf2 {[%clk 0:00:09]}  Nf5 {[%clk 0:00:06]} 38. Bxf5 {[%clk 0:00:09]}  exf5 {[%clk 0:00:07]} 39. Rd1 {[%clk 0:00:09]}  Kb8 {[%clk 0:00:07]} 40. Bb2 {[%clk 0:00:08]}  g6 {[%clk 0:00:07]} 41. Rd4 {[%clk 0:00:07]}  Kc8 {[%clk 0:00:07]} 42. g3 {[%clk 0:00:06]}  Nb6 {[%clk 0:00:08]} 43. g4 {[%clk 0:00:05]}  Rxd4 {[%clk 0:00:08]} 44. Bxd4 {[%clk 0:00:06]}  fxg4 {[%clk 0:00:09]} 45. fxg4 {[%clk 0:00:06]}  Kd7 {[%clk 0:00:08]} 46. Ke3 {[%clk 0:00:07]}  Nd5+ {[%clk 0:00:08]} 47. Ke4 {[%clk 0:00:07]}  Nc7 {[%clk 0:00:08]} 48. a4 {[%clk 0:00:07]}  a6 {[%clk 0:00:08]} 49. b6 {[%clk 0:00:07]}  Ne6 {[%clk 0:00:08]} 50. Be3 {[%clk 0:00:07]}  Kc6 {[%clk 0:00:08]} 51. Ke5 {[%clk 0:00:07]}  h5 {[%clk 0:00:06]} 52. Kf6 {[%clk 0:00:07]}  hxg4 {[%clk 0:00:06]} 53. hxg4 {[%clk 0:00:08]}  Nc5 {[%clk 0:00:03]} 54. Kxf7 {[%clk 0:00:07]}  Kxb6 {[%clk 0:00:03]} 55. Kxg6 {[%clk 0:00:06]}  Kc6 {[%clk 0:00:03]} 56. Bxc5 {[%clk 0:00:05]}  Kxc5 {[%clk 0:00:04]} 57. Kf5 {[%clk 0:00:05]}  b5 {[%clk 0:00:05]} 58. axb5 {[%clk 0:00:05]}  axb5 {[%clk 0:00:06]} 59. g5 {[%clk 0:00:06]}  b4 {[%clk 0:00:07]} 60. g6 {[%clk 0:00:06]}  b3 {[%clk 0:00:08]} 61. g7 {[%clk 0:00:07]}  b2 {[%clk 0:00:09]} 62. g8=Q {[%clk 0:00:07]}  b1=Q+ {[%clk 0:00:10]} 63. Kf6 {[%clk 0:00:07]}  Qb2+ {[%clk 0:00:10]} 64. Kf7 {[%clk 0:00:07]}  Qf2+ {[%clk 0:00:10]} 65. Ke7 {[%clk 0:00:06]}  Qe2+ {[%clk 0:00:11]} 66. Kf8 {[%clk 0:00:07]}  Qf3+ {[%clk 0:00:10]} 67. Qf7 {[%clk 0:00:08]}  Qa8+ {[%clk 0:00:11]} 68. Qe8 {[%clk 0:00:08]}  Qxe8+ {[%clk 0:00:11]} 69. Kxe8 {[%clk 0:00:08]} 1/2-1/2


[Site "https://www.chess.com"]